fUST/lending_fUST_20250814
["ID","MTS","AMOUNT","RATE_DAILY","PERIOD"]
[379143507,1755163832505,-300.0,0.00017745,2]
[379143509,1755163832514,-300.0,0.00017745,2]
[379143510,1755163832524,-1200.0,0.00017745,2]
[379143511,1755163832533,-460.0,0.00017746,2]
[379143513,1755163832542,-251.6482974,0.00017746,2]
[379143514,1755163832551,-705.98,0.00017746,2]
[379143515,1755163832561,-957.75,0.00017746,2]
[379143517,1755163832570,-176.3708105,0.00017746,2]
[379143519,1755163832581,-613.42343931,0.00017746,2]
[379143522,1755163833513,5000.0,0.0001774,2]
[379143535,1755163838416,-1699.47423053,0.00017746,2]
[379143538,1755163840216,-106.56151966,0.00017746,2]
[379143539,1755163840225,-374.3570579,0.00017746,2]
[379143540,1755163840237,-225.2229421,0.00017746,2]
[379143541,1755163840246,-460.0,0.00017746,2]
[379143542,1755163840256,-52.69101418,0.00017746,2]
[379143544,1755163840276,-407.30898582,0.00017746,2]
[379143545,1755163840285,-460.0,0.00017746,2]
[379143546,1755163840295,-460.0,0.00017746,2]
[379143547,1755163840304,-1414.41664284,0.00017746,2]
[379143548,1755163840315,-90.82634982,0.00017746,2]
[379143549,1755163840324,-151.0,0.00017746,2]
[379143550,1755163840334,-151.0,0.00017746,2]
[379143552,1755163840343,-151.0,0.00017746,2]
[379143554,1755163840352,-151.0,0.00017746,2]
[379143555,1755163840362,-148.80955502,0.00017746,2]
[379143559,1755163840750,-2.19044498,0.00017746,2]
[379143560,1755163840760,-151.0,0.00017746,2]
[379143561,1755163840769,-151.0,0.00017746,2]
[379143562,1755163840779,-151.0,0.00017746,2]
[379143563,1755163840788,-151.0,0.00017746,2]
[379143564,1755163840797,-151.0,0.00017746,2]
[379143565,1755163840806,-3392.08641366,0.00017746,2]
[379143566,1755163840823,-1469.98163136,0.00017746,2]
[379143572,1755163843359,-460.0,0.00017746,2]
[379143573,1755163843369,-460.0,0.00017746,2]
[379143574,1755163843378,-1651.85868063,0.00017746,2]
[379143575,1755163843415,-389.08634956,0.00017746,2]
[379143576,1755163843427,-791.2784889,0.00017746,2]
[379143580,1755163846490,-460.0,0.00017746,2]
[379143581,1755163846499,-2254.10694411,0.00017746,2]
[379143584,1755163848091,-1380.0,0.00017746,2]
[379143585,1755163848969,975.90045047,0.0001774,2]
[379143586,1755163848992,4024.09954953,0.0001774,2]
[379143587,1755163865673,5000.0,0.0001774,2]
[379143588,1755163882502,975.90045047,0.0001774,2]
[379143589,1755163882525,4024.09954953,0.0001774,2]
[379143592,1755163887178,394.03738132,0.00017538,2]
[379143614,1755163965832,156.774245,0.0002254,30]
[379143615,1755163970125,212.5981636,0.00016749,2]
[379143616,1755163998857,250.0,0.00017559,2]
[379143647,1755164032458,2786.35979963,0.00017646,2]
[379143651,1755164095999,554.03912133,0.00017656,2]
[379143652,1755164097999,554.03912129,0.00017725,2]
[379143654,1755164203744,654.936464,0.00013699,2]
[379143657,1755164216810,569.8903993,0.0001706,2]
[379143658,1755164216834,169.90840621,0.0001706,2]
[379143661,1755164234564,9830.09159379,0.00017655,2]
[379143662,1755164234587,10000.0,0.00017655,2]
[379143663,1755164234609,10000.0,0.00017655,2]
[379143664,1755164234630,10000.0,0.00017655,2]
[379143665,1755164234652,10000.0,0.00017655,2]
[379143666,1755164234674,10000.0,0.00017655,2]
[379143667,1755164234696,10000.0,0.00017655,2]
[379143668,1755164234718,10000.0,0.00017655,2]
[379143669,1755164234740,10000.0,0.00017655,2]
[379143670,1755164234762,10000.0,0.00017655,2]
[379143671,1755164234783,10000.0,0.00017655,2]
[379143672,1755164234807,10000.0,0.00017655,2]
[379143673,1755164234828,10000.0,0.00017655,2]
[379143674,1755164234852,10000.0,0.00017655,2]
[379143675,1755164234874,10000.0,0.00017655,2]
[379143676,1755164234896,10000.0,0.00017655,2]
[379143677,1755164234919,10000.0,0.00017655,2]
[379143678,1755164234941,10000.0,0.00017655,2]
[379143679,1755164234962,10000.0,0.00017655,2]
[379143680,1755164234984,10000.0,0.00017655,2]
[379143681,1755164235007,10000.0,0.00017655,2]
[379143682,1755164235030,10000.0,0.00017655,2]
[379143683,1755164235052,10000.0,0.00017655,2]
[379143684,1755164235075,10000.0,0.00017655,2]
[379143685,1755164235099,10000.0,0.00017655,2]
[379143686,1755164235123,10000.0,0.00017655,2]
[379143687,1755164235148,10000.0,0.00017655,2]
[379143688,1755164235172,10000.0,0.00017655,2]
[379143689,1755164235196,10000.0,0.00017655,2]
[379143690,1755164235219,10000.0,0.00017655,2]
[379143691,1755164235423,10000.0,0.00017655,2]
[379143692,1755164235447,10000.0,0.00017655,2]
[379143693,1755164235469,10000.0,0.00017655,2]
[379143694,1755164235492,6238.77968465,0.00017655,2]
[379143696,1755164257240,3761.22031535,0.0001774,2]
[379143697,1755164257262,1238.77968465,0.0001774,2]
[379143698,1755164267157,196.43,0.00017736,3]
[379143699,1755164273089,5000.0,0.0001774,2]
[379143700,1755164277852,589.31,0.00017736,3]
[379143701,1755164289705,2975.48031535,0.0001774,2]
[379143702,1755164289729,2024.51968465,0.0001774,2]
[379143703,1755164307982,2438.06482465,0.00017646,2]
[379143704,1755164335889,5537.4154907,0.00016748,2]
[379143705,1755164335911,4462.5845093,0.00016748,2]
[379143706,1755164349555,5000.0,0.0001774,2]
[379143707,1755164353390,537.4154907,0.00017645,2]
[379143708,1755164353414,1229.5390166,0.00017645,2]
[379143709,1755164365985,5000.0,0.0001774,2]
[379143710,1755164379047,3770.4609834,0.00017655,2]
[379143711,1755164379070,10000.0,0.00017655,2]
[379143712,1755164379092,10000.0,0.00017655,2]
[379143713,1755164379114,10000.0,0.00017655,2]
[379143714,1755164379135,10000.0,0.00017655,2]
[379143715,1755164379157,10000.0,0.00017655,2]
[379143716,1755164379178,10000.0,0.00017655,2]
[379143717,1755164379200,10000.0,0.00017655,2]
[379143718,1755164379222,10000.0,0.00017655,2]
[379143719,1755164379243,10000.0,0.00017655,2]
[379143720,1755164379265,10000.0,0.00017655,2]
[379143721,1755164379288,10000.0,0.00017655,2]
[379143722,1755164379310,10000.0,0.00017655,2]
[379143723,1755164379332,10000.0,0.00017655,2]
[379143724,1755164379354,10000.0,0.00017655,2]
[379143725,1755164379376,10000.0,0.00017655,2]
[379143726,1755164379398,10000.0,0.00017655,2]
[379143727,1755164379420,10000.0,0.00017655,2]
[379143728,1755164379442,10000.0,0.00017655,2]
[379143729,1755164379464,10000.0,0.00017655,2]
[379143730,1755164379485,10000.0,0.00017655,2]
[379143731,1755164379507,10000.0,0.00017655,2]
[379143732,1755164379531,10000.0,0.00017655,2]
[379143733,1755164379558,10000.0,0.00017655,2]
[379143734,1755164379579,10000.0,0.00017655,2]
[379143735,1755164379601,10000.0,0.00017655,2]
[379143736,1755164379627,10000.0,0.00017655,2]
[379143737,1755164379655,10000.0,0.00017655,2]
[379143738,1755164379676,10000.0,0.00017655,2]
[379143739,1755164379700,10000.0,0.00017655,2]
[379143740,1755164379722,10000.0,0.00017655,2]
[379143741,1755164379743,10000.0,0.00017655,2]
[379143742,1755164379766,10000.0,0.00017655,2]
[379143743,1755164379787,10000.0,0.00017655,2]
[379143744,1755164379818,10000.0,0.00017655,2]
[379143745,1755164379846,10000.0,0.00017655,2]
[379143746,1755164379870,10000.0,0.00017655,2]
[379143747,1755164379898,6229.5390166,0.00017655,2]
[379143748,1755164382249,3770.4609834,0.0001774,2]
[379143749,1755164382273,1229.5390166,0.0001774,2]
[379143750,1755164390294,5000.0,0.0001774,2]
[379143751,1755164390811,441.73862682,0.00017645,2]
[379143752,1755164398736,3328.72235658,0.0001774,2]
[379143753,1755164398762,1671.27764342,0.0001774,2]
[379143754,1755164411084,8328.72235658,0.00017644,2]
[379143755,1755164411106,10000.0,0.00017644,2]
[379143756,1755164411127,10000.0,0.00017644,2]
[379143757,1755164411152,3339.81550443,0.00017644,2]
[379143760,1755164414772,5000.0,0.0001774,2]
[379143761,1755164431153,1660.18449557,0.0001774,2]
[379143762,1755164431187,3339.81550443,0.0001774,2]
[379143763,1755164434549,895.83735562,0.00017646,2]
[379143764,1755164436496,895.8373556,0.00017722,2]
[379143765,1755164447814,4868.50978435,0.0001774,2]
[379143766,1755164447838,131.49021565,0.0001774,2]
[379143779,1755164509726,203.21670892,0.00017644,2]
[379143781,1755164542735,9665.29307543,0.00017646,2]
[379143782,1755164542756,10000.0,0.00017646,2]
[379143783,1755164542782,10000.0,0.00017646,2]
[379143784,1755164542803,10000.0,0.00017646,2]
[379143785,1755164542824,10000.0,0.00017646,2]
[379143786,1755164542844,10000.0,0.00017646,2]
[379143787,1755164542865,10000.0,0.00017646,2]
[379143788,1755164542885,10000.0,0.00017646,2]
[379143789,1755164542912,10000.0,0.00017646,2]
[379143790,1755164542933,10000.0,0.00017646,2]
[379143791,1755164542956,10000.0,0.00017646,2]
[379143792,1755164542977,10000.0,0.00017646,2]
[379143793,1755164543000,10000.0,0.00017646,2]
[379143794,1755164543022,10000.0,0.00017646,2]
[379143795,1755164543043,10000.0,0.00017646,2]
[379143796,1755164543065,10000.0,0.00017646,2]
[379143797,1755164543093,10000.0,0.00017646,2]
[379143798,1755164543315,10000.0,0.00017646,2]
[379143799,1755164543338,10000.0,0.00017646,2]
[379143800,1755164543364,180334.70692457,0.00017646,2]
[379143801,1755164552435,19665.29307543,0.00017644,2]
[379143802,1755164567870,156.774245,0.0002254,30]
[379143803,1755164581500,-291.9545145,0.00017644,2]
[379143804,1755164587902,-300.0,0.00017643,2]
[379143805,1755164587937,-12.10413858,0.00017644,2]
[379143806,1755164590211,-189.5788539,0.00017644,2]
[379143807,1755164592591,-256.62505515,0.00017644,2]
[379143808,1755164596587,-152.49687673,0.00017644,2]
[379143809,1755164601776,-184.18583241,0.00017468,2]
[379143810,1755164604067,-240.19874226,0.00017468,2]
[379143811,1755164606241,-292.69115805,0.00017468,2]
[379143812,1755164608525,-200.3268015,0.00016744,2]
[379143813,1755164608548,-193.82613533,0.00017468,2]
[379143814,1755164610763,-71.42781049,0.00017468,2]
[379143815,1755164610786,-269.37129298,0.00017634,3]
[379143816,1755164612448,-428.58558453,0.00017634,3]
[379143817,1755164614595,-452.24569003,0.00017468,2]
[379143818,1755164618327,-442.69755408,0.00017468,2]
[379143820,1755164621122,-249.07519593,0.00017468,2]
[379143821,1755164622931,-119.70710624,0.00017468,2]
[379143822,1755164622955,-44.32487015,0.00017634,3]
[379143825,1755164626139,-158.02347389,0.00017634,3]
[379143828,1755164631566,-518.48619686,0.00017468,2]
[379143829,1755164633792,-151.49281876,0.00017468,2]
[379143831,1755164636222,-241.34877261,0.00017468,2]
[379143832,1755164639006,-185.4545065,0.00016719,2]
[379143835,1755164642208,-244.71229766,0.00016719,2]
[379143837,1755164645225,-418.60988436,0.00016719,2]
[379143839,1755164647007,-781.0,0.00016719,2]
[379143840,1755164648572,-7.66165648,0.00016719,2]
[379143841,1755164648595,-279.66814272,0.00017468,2]
[379143844,1755164653760,-178.42545669,0.00017468,2]
[379143846,1755164657447,-257.7536585,0.00017468,2]
[379143848,1755164661527,-311.2871883,0.00017468,2]
[379143850,1755164663968,-138.97286999,0.00017468,2]
[379143851,1755164663992,-285.38219928,0.00017633,2]
[379143854,1755164665672,-14.61780072,0.00017633,2]
[379143855,1755164665695,-317.98061332,0.00017634,3]
[379143856,1755164668924,-309.21945475,0.00017634,3]
[379143857,1755164672504,-246.1278601,0.00017634,3]
[379143858,1755164675921,-162.53192024,0.00017468,2]
[379143859,1755164677665,-223.73164722,0.00017468,2]
[379143860,1755164679473,-177.11,0.00017468,2]
[379143861,1755164683354,-113.13610329,0.00017468,2]
[379143862,1755164683376,-83.15831857,0.00017634,3]
[379143863,1755164685020,-154.90224994,0.00017634,3]
[379143864,1755164687517,-300.0,0.00016694,2]
[379143865,1755164692168,-172.19565159,0.00016527,2]
[379143866,1755164692797,4759.8182934,0.00025999,120]
[379143867,1755164693877,-179.00102021,0.00016527,2]
[379143868,1755164693903,-65.12288343,0.00016694,2]
[379143869,1755164696137,-195.77007257,0.00016694,2]
[379143870,1755164698324,-303.04575397,0.00016694,2]
[379143872,1755164700866,-151.51170282,0.00016694,2]
[379143874,1755164704870,-166.9356753,0.00016694,2]
[379143876,1755164707144,-185.89171525,0.00016527,2]
[379143878,1755164710088,-388.31799339,0.00016527,2]
[379143880,1755164712733,-155.05087573,0.00016527,2]
[379143881,1755164713801,-637.38650022,0.00016527,2]
[379143882,1755164713824,-1645.61349978,0.00016694,2]
[379143883,1755164714409,-54.49259533,0.00016694,2]
[379143884,1755164714432,-205.49223635,0.00017534,2]
[379143885,1755164714455,-134.85292153,0.00017633,2]
[379143886,1755164717324,-333.64991787,0.00017633,2]
[379143888,1755164720665,-205.49223635,0.00017633,2]
[379143889,1755164722282,-385.95258278,0.00017633,2]
[379143891,1755164725732,-166.42584238,0.00017457,2]
[379143894,1755164729268,-300.0,0.00017457,2]
[379143898,1755164734488,-265.63475134,0.00017457,2]
[379143900,1755164737270,-211.03874077,0.00017457,2]
[379143902,1755164740011,-327.36808057,0.00017457,2]
[379143904,1755164743107,-300.99477918,0.00017457,2]
[379143906,1755164744726,-53.22173651,0.00017457,2]
[379143907,1755164744749,-140.05234147,0.00017633,2]
[379143908,1755164744772,-63.0087943,0.00017634,3]
[379143909,1755164747172,-309.36782473,0.00017634,3]
[379143910,1755164749598,-362.52785105,0.00017634,3]
[379143911,1755164752612,-333.86510025,0.00017634,3]
[379143912,1755164755882,-278.37838903,0.00017458,2]
[379143913,1755164758655,-200.6999928,0.00017458,2]
[379143914,1755164762053,-235.324473,0.00017458,2]
[379143915,1755164764226,-234.19330905,0.00017458,2]
[379143916,1755164766612,-232.69793018,0.00017458,2]
[379143917,1755164769392,-266.83070884,0.00017458,2]
[379143918,1755164772141,-255.57894804,0.00017458,2]
[379143919,1755164773760,-395.39899585,0.00017458,2]
[379143920,1755164775991,-189.20619937,0.00017458,2]
[379143921,1755164778310,-263.97913976,0.00017458,2]
[379143922,1755164781256,-176.26962446,0.00017458,2]
[379143923,1755164781279,-123.73037554,0.00017546,2]
[379143924,1755164783026,-224.62500086,0.00017546,2]
[379143925,1755164787616,-155.6085644,0.00017371,2]
[379143926,1755164789204,-384.37344059,0.00017371,2]
[379143927,1755164791404,-301.76915546,0.00017371,2]
[379143928,1755164793783,-153.24770248,0.00017371,2]
[379143929,1755164799605,-400.9443495,0.00017371,2]
[379143930,1755164802986,-178.93098434,0.00017371,2]
[379143931,1755164805242,-151.90017713,0.00017371,2]
[379143932,1755164807995,-263.59378805,0.00017371,2]
[379143934,1755164813065,-173.96688245,0.00017371,2]
[379143935,1755164817108,-158.52099033,0.00017371,2]
[379143936,1755164820286,-287.52568434,0.00017371,2]
[379143937,1755164824685,-157.81537883,0.00017371,2]
[379143938,1755164828549,-169.91122318,0.00017371,2]
[379143939,1755164831661,-288.25799454,0.00017371,2]
[379143940,1755164833371,-195.57392048,0.00017371,2]
[379143941,1755164836129,-126.74080112,0.00017371,2]
[379143942,1755164836152,-46.61999799,0.00017546,2]
[379143943,1755164838999,-323.80693673,0.00017546,2]
[379143950,1755164841403,-168.48143441,0.00017546,2]
[379143951,1755164844651,-159.12387987,0.00017371,2]
[379143952,1755164849185,-244.05858128,0.00017371,2]
[379143953,1755164852391,-333.24125087,0.00017371,2]
[379143954,1755164858766,-180.90390237,0.00017371,2]
[379143955,1755164860424,-303.93924614,0.00017371,2]
[379143956,1755164862311,-244.7350357,0.00017371,2]
[379143957,1755164866635,-385.0853581,0.00017371,2]
[379143958,1755164871088,-256.82839612,0.00017371,2]
[379143959,1755164874963,-156.49865956,0.00017371,2]
[379143960,1755164877653,-169.19780497,0.00017371,2]
[379143961,1755164880009,-526.46780426,0.00017371,2]
[379143962,1755164882254,-264.65620102,0.00017371,2]
[379143963,1755164885692,-250.37310722,0.00017371,2]
[379143964,1755164889914,-318.84727447,0.00017371,2]
[379143965,1755164892960,-197.82291034,0.00017371,2]
[379143966,1755164894627,-151.95356051,0.00017371,2]
[379143967,1755164894650,-75.37860666,0.00017543,2]
[379143968,1755164898261,-336.24991532,0.00017543,2]
[379143969,1755164901600,-330.26763059,0.00017543,2]
[379143970,1755164903817,-274.25291041,0.00017368,2]
[379143971,1755164907109,-171.54446583,0.00017368,2]
[379143972,1755164909147,-313.98306974,0.00017368,2]
[379143973,1755164912960,-297.51251135,0.00017368,2]
[379143978,1755164916955,-161.83628158,0.00017368,2]
[379143979,1755164918706,-180.50575617,0.00017368,2]
[379143980,1755164922562,-334.79107762,0.00017368,2]
[379143982,1755164927961,-284.70316621,0.00017368,2]
[379143997,1755164932116,-259.72974947,0.00017368,2]
[379143998,1755164936611,-191.14157386,0.00017368,2]
[379143999,1755164936633,-71.64412919,0.00017446,2]
[379144000,1755164938797,-97.55367578,0.00017446,2]
[379144001,1755164938822,-68.67975341,0.00017543,2]
[379144002,1755164940999,-245.34930878,0.00017543,2]
[379144003,1755164943235,-215.78247941,0.00017543,2]
[379144004,1755164946114,-542.29791302,0.00017543,2]
[379144005,1755164949149,-395.6458207,0.00017368,2]
[379144006,1755164952609,-232.25592723,0.00017368,2]
[379144007,1755164954347,-290.1493648,0.00017368,2]
[379144008,1755164956531,-206.90154381,0.00017368,2]
[379144009,1755164960208,-222.66882131,0.00017368,2]
[379144010,1755164961874,-201.77539165,0.00017368,2]
[379144011,1755164961896,-277.67272097,0.00017543,2]
[379144012,1755164964497,-183.59764733,0.00017543,2]
[379144013,1755164966794,-192.68,0.00017543,2]
[379144014,1755164969971,-241.4,0.00017543,2]
[379144015,1755164972522,-257.25919901,0.00017543,2]
[379144016,1755164975346,-163.82,0.00017543,2]
[379144017,1755164977503,-210.58906433,0.00017368,2]
[379144018,1755164981088,-169.7506352,0.00017368,2]
[379144019,1755164984518,-295.40816681,0.00017368,2]
[379144020,1755164986204,-276.77628071,0.00017368,2]
[379144021,1755164988592,-168.77167557,0.00017368,2]
[379144023,1755164990310,-331.64639503,0.00017368,2]
[379144024,1755164992656,-250.23779046,0.00017368,2]
[379144025,1755164994078,-257.3319705,0.00017368,2]
[379144026,1755164996363,-151.50832977,0.00017368,2]
[379144027,1755164998042,-333.16504747,0.00017368,2]
[379144028,1755165001033,-208.54521185,0.00017368,2]
[379144030,1755165003271,-165.52241516,0.00017368,2]
[379144031,1755165005428,-239.00237299,0.00017368,2]
[379144032,1755165006974,-106.91053164,0.00017368,2]
[379144033,1755165006998,-103.44203089,0.00017543,2]
[379144034,1755165011371,-32.68010236,0.00017543,2]
[379144035,1755165011395,-382.49305356,0.00017546,2]
[379144036,1755165017157,-98.16336391,0.00017546,2]
[379144039,1755165032472,-578.13243782,0.00017457,2]
[379144040,1755165032483,-1843.94291803,0.00017457,2]
[379144041,1755165032493,-1200.0,0.00017633,2]
[379144042,1755165032502,-1165.0,0.00017633,2]
[379144043,1755165032511,-300.0,0.00017633,2]
[379144044,1755165032521,-224.33169866,0.00017633,2]
[379144045,1755165032532,-51.25465151,0.00017633,2]
[379144046,1755165032541,-441.40889668,0.00017633,2]
[379144047,1755165032553,-18.59110332,0.00017633,2]
[379144048,1755165032562,-246.72660394,0.00017633,2]
[379144049,1755165032574,-213.27339606,0.00017633,2]
[379144050,1755165032584,-486.58260394,0.00017634,2]
[379144051,1755165032595,-4997.38990144,0.00017634,2]
[379144052,1755165032607,-602.98752802,0.00017634,2]
[379144127,1755165038439,-737.44,0.00017633,2]
[379144129,1755165038449,-95.5599536,0.00017634,2]
[379144132,1755165038460,-1074.0,0.00017634,2]
[379144143,1755165038544,-4299.82623,0.00017634,2]
[379144150,1755165038604,-8426.166588,0.00017634,2]
[379144445,1755165041681,-76.07802818,0.00017634,2]
[379144449,1755165041705,-6820.25929974,0.00017634,2]
[379144653,1755165043761,-23121.14986708,0.00017634,2]
[379144655,1755165043771,-242.97671144,0.00017634,3]
[379144657,1755165043781,-1661.72,0.00017634,3]
[379144659,1755165043790,-830.86,0.00017634,3]
[379144661,1755165043799,-415.43,0.00017634,3]
[379144663,1755165043808,-207.72,0.00017634,3]
[379144665,1755165043817,-623.17,0.00017634,3]
[379144667,1755165043826,-271.80648357,0.00017634,2]
[379144669,1755165043836,-1367.920163,0.00017635,2]
[379144671,1755165043846,-500.0,0.00017643,2]
[379144673,1755165043856,-500.0,0.00017643,2]
[379144675,1755165043865,-482.98274003,0.00017643,2]
[379144677,1755165043875,-500.0,0.00017643,2]
[379144679,1755165043884,-526.41386465,0.00017643,2]
[379144681,1755165043893,-500.0,0.00017643,2]
[379144683,1755165043903,-500.0,0.00017643,2]
[379144685,1755165043912,-500.0,0.00017643,2]
[379144687,1755165043921,-500.0,0.00017643,2]
[379144689,1755165043930,-546.68662284,0.00017643,2]
[379144691,1755165043940,-500.0,0.00017643,2]
[379144693,1755165043949,-500.0,0.00017643,2]
[379144695,1755165043958,-500.0,0.00017643,2]
[379144697,1755165043967,-529.92067348,0.00017643,2]
[379144699,1755165043976,-500.0,0.00017643,2]
[379144701,1755165043985,-471.14020219,0.00017643,2]
[379144703,1755165043994,-500.0,0.00017643,2]
[379144705,1755165044003,-500.0,0.00017643,2]
[379144707,1755165044013,-500.0,0.00017643,2]
[379144709,1755165044025,-89726.18040929,0.00017644,2]
[379144871,1755165046561,-460.0,0.00017633,2]
[379144873,1755165046571,-901.63363761,0.00017644,2]
[379144959,1755165047951,-842.94405126,0.00017644,2]
[379151388,1755165133787,-165.93516691,0.0001744,2]
[379151389,1755165136555,-75.56194559,0.0001744,2]
[379151390,1755165202764,-228.94649826,0.00017427,2]
[379151391,1755165205207,-236.83090778,0.00017427,2]
[379151392,1755165208713,-36.69159396,0.00017427,2]
[379151393,1755165237972,-211.32322472,0.00017532,2]
[379151394,1755165241272,-422.50983545,0.00017532,2]
[379151395,1755165243058,-299.78626005,0.00017531,2]
[379151396,1755165245658,-0.21373995,0.00017531,2]
[379151397,1755165245680,-166.4138844,0.00017532,2]
[379151398,1755165247798,-288.51152678,0.00017532,2]
[379151399,1755165250532,-368.48400416,0.00017532,2]
[379151401,1755165336222,694.43761,0.00013699,2]
[379151403,1755165367554,-243.49126746,0.00017432,2]
[379151404,1755165369695,-234.28565764,0.00017432,2]
[379151405,1755165372393,-382.04836869,0.00017432,2]
[379151406,1755165374038,-185.98539516,0.00017432,2]
[379151407,1755165376696,-246.66470153,0.00017432,2]
[379151408,1755165379454,-152.0332552,0.00017432,2]
[379151409,1755165384991,-151.16580636,0.00017258,2]
[379151410,1755165387132,-198.34500326,0.00017258,2]
[379151411,1755165388750,-272.30576162,0.00017258,2]
[379151412,1755165390849,-164.0772322,0.00017258,2]
[379151413,1755165393043,-217.41933269,0.00017258,2]
[379151414,1755165396349,-291.25010085,0.00017258,2]
[379151415,1755165399103,-149.9454087,0.00017258,2]
[379151416,1755165399128,-21.59486898,0.00017332,2]
[379151417,1755165400743,-141.4527103,0.00017332,2]
[379151418,1755165400765,-91.18877555,0.00017432,2]
[379151419,1755165404160,-217.50144414,0.00017432,2]
[379151420,1755165407053,-4.04361014,0.00017432,2]
[379151421,1755165414710,-313.07223966,0.00017355,2]
[379151422,1755165417328,-641.26889547,0.00017355,2]
[379151423,1755165419000,-444.71236319,0.00017355,2]
[379151424,1755165421702,-355.28763681,0.00017355,2]
[379151427,1755165508329,-242.99832294,0.00016605,2]
[379151428,1755165510544,-3.12579926,0.00016605,2]
[379151429,1755165604695,-262.81052129,0.00017181,2]
[379151430,1755165664298,-152.701679,0.00016534,2]
[379151431,1755165669040,-147.298321,0.00016534,2]
[379151432,1755165669061,-7149.5149331,0.00016535,2]
[379151433,1755165669081,-3043.1867459,0.00016535,5]
[379151434,1755165669923,-152.0,0.00016535,5]
[379151435,1755165675986,-197.68380669,0.00016535,5]
[379151436,1755165677885,-334.1888344,0.00016535,5]
[379151437,1755165681917,-277.138039,0.00016531,2]
[379151438,1755165737317,-693.931973,0.00016531,2]
[379151439,1755165737338,-6520.68503696,0.00016535,5]
[379151440,1755165737357,-214.61512767,0.00016564,2]
[379151441,1755165795268,857.4795335,0.00016663,2]
[379151442,1755165813433,-899.1267527,0.00016663,2]
[379151443,1755165894056,280.1888227,0.00016662,2]
[379151444,1755165924996,21.8111773,0.00017046,2]
[379151445,1755165945586,-1978.1888227,0.00017046,2]
[379151446,1755165986801,430.8111773,0.00016965,2]
[379151447,1755166015289,-263.5688227,0.00016965,2]
[379151448,1755166107826,215.0,0.00016645,2]
[379151489,1755166232876,-546.0,0.00016645,2]
[379151490,1755166232886,-499.0,0.0001706,2]
[379151491,1755166232896,-300.0,0.00017429,2]
[379151492,1755166232906,-1200.0,0.00017429,2]
[379151493,1755166232916,-1665.99338924,0.0001743,2]
[379151494,1755166232925,-89.78101568,0.00017481,2]
[379151496,1755166232936,-1079.30644084,0.00017481,2]
[379151498,1755166232952,-496.90593271,0.00017481,2]
[379151500,1755166232963,-2629.0,0.00017499,2]
[379151502,1755166232972,-291.68196718,0.00017522,2]
[379151504,1755166232981,-151.0,0.00017522,2]
[379151505,1755166232990,-151.0,0.00017522,2]
[379151507,1755166232999,-151.0,0.00017522,2]
[379151509,1755166233009,-151.0,0.00017522,2]
[379151511,1755166233018,-151.0,0.00017522,2]
[379151514,1755166233027,-151.0,0.00017522,2]
[379151516,1755166233038,-151.0,0.00017522,2]
[379151518,1755166233048,-151.0,0.00017522,2]
[379151520,1755166233058,-151.0,0.00017522,2]
[379151522,1755166233068,-151.0,0.00017522,2]
[379151524,1755166233078,-17842.522448,0.00017522,2]
[379151526,1755166233087,-151.0,0.00017522,2]
[379151528,1755166233096,-151.0,0.00017522,2]
[379151530,1755166233105,-151.0,0.00017522,2]
[379151532,1755166233115,-151.0,0.00017522,2]
[379151534,1755166233125,-151.0,0.00017522,2]
[379151536,1755166233136,-151.0,0.00017522,2]
[379151538,1755166233145,-151.0,0.00017522,2]
[379151540,1755166233155,-151.0,0.00017522,2]
[379151541,1755166233166,-151.0,0.00017522,2]
[379151543,1755166233176,-151.0,0.00017522,2]
[379151545,1755166233186,-151.0,0.00017522,2]
[379151547,1755166233195,-151.0,0.00017522,2]
[379151549,1755166233205,-449.63184698,0.00017524,2]